fUSD/lending_fUSD_20240121
["ID","MTS","AMOUNT","RATE_DAILY","PERIOD"]
[312397506,1705858303490,-526.82,0.00042191,31]
[312397507,1705858303499,-608.82,0.00042191,31]
[312397508,1705858303510,-1000.0,0.00042191,31]
[312397509,1705858303521,-500.0,0.00042191,31]
[312397510,1705858303531,-500.0,0.00042191,31]
[312397511,1705858303542,-500.0,0.00042191,31]
[312397512,1705858303552,-503.36064831,0.00042191,31]
[312397513,1705858303561,-506.32531004,0.00042191,31]
[312397514,1705858303571,-669.62,0.00042191,31]
[312397515,1705858303581,-500.0,0.00042191,31]
[312397516,1705858303590,-500.0,0.00042191,31]
[312397517,1705858303600,-500.0,0.00042191,31]
[312397518,1705858303610,-500.0,0.00042191,31]
[312397519,1705858303619,-521.30335787,0.00042191,31]
[312397520,1705858303629,-500.0,0.00042191,31]
[312397521,1705858303639,-500.0,0.00042191,31]
[312397522,1705858303648,-500.0,0.00042191,31]
[312397523,1705858303658,-529.79,0.00042191,31]
[312397524,1705858303668,-500.0,0.00042191,31]
[312397525,1705858303677,-500.0,0.00042191,31]
[312397526,1705858303688,-500.0,0.00042191,31]
[312397527,1705858303697,-1950.75,0.00042191,31]
[312397528,1705858303707,-500.0,0.00042191,31]
[312397529,1705858303716,-500.0,0.00042191,31]
[312397530,1705858303726,-500.0,0.00042191,31]
[312397531,1705858303736,-500.0,0.00042191,31]
[312397532,1705858303746,-500.0,0.00042191,31]
[312397533,1705858303756,-500.0,0.00042191,31]
[312397534,1705858303766,-500.0,0.00042191,31]
[312397535,1705858303775,-504.75176133,0.00042191,31]
[312397536,1705858303785,-500.0,0.00042191,31]
[312397537,1705858303794,-500.0,0.00042191,31]
[312397538,1705858303806,-739.79,0.00042191,31]
[312397539,1705858303816,-500.0,0.00042191,31]
[312397540,1705858303826,-500.0,0.00042191,31]
[312397541,1705858303835,-500.0,0.00042191,31]
[312397542,1705858303845,-500.0,0.00042191,31]
[312397543,1705858303855,-612.53,0.00042191,31]
[312397544,1705858303865,-559.97,0.00042191,31]
[312397545,1705858303875,-562.5,0.00042191,31]
[312397546,1705858303885,-583.04,0.00042191,31]
[312397547,1705858303895,-500.0,0.00042191,31]
[312397548,1705858303905,-500.0,0.00042191,31]
[312397549,1705858303915,-578.47,0.00042191,31]
[312397550,1705858303924,-500.0,0.00042191,31]
[312397551,1705858303934,-692.97,0.00042191,31]
[312397552,1705858303944,-500.0,0.00042191,31]
[312397553,1705858303954,-504.36303374,0.00042191,31]
[312397554,1705858303964,-500.0,0.00042191,31]
[312397555,1705858303974,-618.04751453,0.00042191,31]
[312397556,1705858303984,-500.0,0.00042191,31]
[312397557,1705858303994,-794.24,0.00042191,31]
[312397558,1705858304003,-500.0,0.00042191,31]
[312397559,1705858304013,-500.0,0.00042191,31]
[312397560,1705858304024,-573.24,0.00042191,31]
[312397561,1705858304034,-500.0,0.00042191,31]
[312397562,1705858304044,-707.04,0.00042191,31]
[312397563,1705858304054,-500.0,0.00042191,31]
[312397564,1705858304064,-500.0,0.00042191,31]
[312397565,1705858304078,-500.0,0.00042191,31]
[312397566,1705858304088,-500.0,0.00042191,31]
[312397567,1705858304099,-500.0,0.00042191,31]
[312397568,1705858304109,-500.0,0.00042191,31]
[312397569,1705858304119,-500.0,0.00042191,31]
[312397570,1705858304129,-500.0,0.00042191,31]
[312397571,1705858304139,-500.0,0.00042191,31]
[312397572,1705858304150,-607.75,0.00042191,30]
[312397573,1705858304160,-500.0,0.00042191,31]
[312397574,1705858304169,-563.5,0.00042191,31]
[312397575,1705858304179,-630.01,0.00042191,31]
[312397576,1705858304189,-500.0,0.00042191,31]
[312397577,1705858304199,-500.0,0.00042191,31]
[312397578,1705858304209,-500.0,0.00042191,31]
[312397579,1705858304219,-500.0,0.00042191,31]
[312397580,1705858304229,-501.78931316,0.00042191,7]
[312397581,1705858304239,-500.0,0.00042191,31]
[312397582,1705858304249,-518.50798271,0.00042191,31]
[312397583,1705858304452,-718.93,0.00042191,31]
[312397584,1705858304477,-500.0,0.00042191,31]
[312397585,1705858304486,-500.0,0.00042191,31]
[312397586,1705858304495,-408.23112447,0.00042191,31]
[312397587,1705858304504,-500.0,0.00042191,31]
[312397588,1705858304514,-500.0,0.00042191,31]
[312397589,1705858304523,-505.77811529,0.00042191,31]
[312397590,1705858304532,-713.35,0.00042191,31]
[312397591,1705858304541,-500.0,0.00042191,31]
[312397592,1705858304551,-500.0,0.00042191,30]
[312397593,1705858304560,-500.0,0.00042191,31]
[312397594,1705858304569,-500.0,0.00042191,31]
[312397595,1705858304578,-500.0,0.00042191,31]
[312397596,1705858304587,-500.0,0.00042191,31]
[312397597,1705858304597,-500.0,0.00042191,7]
[312397598,1705858304606,-500.0,0.00042191,31]
[312397599,1705858304616,-500.0,0.00042191,31]
[312397600,1705858304625,-500.0,0.00042191,31]
[312397601,1705858304635,-500.0,0.00042191,31]
[312397602,1705858304645,-500.0,0.00042191,31]
[312397603,1705858304654,-521.98591767,0.00042191,31]
[312397604,1705858304665,-605.12,0.00042191,31]
[312397605,1705858304674,-500.0,0.00042191,31]
[312397606,1705858304684,-500.0,0.00042191,31]
[312397607,1705858304695,-500.0,0.00042191,31]
[312397608,1705858304705,-500.0,0.00042191,31]
[312397609,1705858304716,-500.0,0.00042191,31]
[312397610,1705858304726,-500.0,0.00042191,31]
[312397611,1705858304736,-500.0,0.00042191,31]
[312397612,1705858304747,-500.0,0.00042191,31]
[312397613,1705858304757,-500.0,0.00042191,31]
[312397614,1705858304767,-500.0,0.00042191,31]
[312397615,1705858304777,-500.0,0.00042191,31]
[312397616,1705858304786,-542.52,0.00042191,31]
[312397617,1705858304796,-500.0,0.00042191,31]
[312397618,1705858304805,-500.0,0.00042191,31]
[312397619,1705858304815,-500.0,0.00042191,31]
[312397620,1705858304824,-781.08,0.00042191,31]
[312397621,1705858304833,-1000.0,0.00042191,7]
[312397622,1705858304843,-500.0,0.00042191,31]
[312397623,1705858304852,-500.0,0.00042191,31]
[312397624,1705858304861,-500.0,0.00042191,31]
[312397625,1705858304871,-521.49,0.00042191,31]
[312397626,1705858304882,-500.0,0.00042191,31]
[312397627,1705858304893,-518.55,0.00042191,31]
[312397628,1705858304903,-671.59,0.00042191,31]
[312397629,1705858304912,-500.0,0.00042191,31]
[312397630,1705858304921,-500.0,0.00042191,31]
[312397631,1705858304931,-157.62702737,0.00042191,31]
[312397632,1705858304941,-500.0,0.00042191,31]
[312397633,1705858304951,-500.0,0.00042191,31]
[312397634,1705858304962,-576.57,0.00042191,31]
[312397635,1705858304972,-500.0,0.00042191,31]
[312397636,1705858304982,-500.0,0.00042191,31]
[312397637,1705858304991,-639.66,0.00042191,31]
[312397638,1705858305000,-500.0,0.00042191,31]
[312397639,1705858305012,-532.04547384,0.00042191,31]
[312397640,1705858305023,-500.0,0.00042191,31]
[312397641,1705858305034,-511.85055777,0.00042191,31]
[312397642,1705858305044,-545.23238881,0.00042191,31]
[312397643,1705858305055,-500.0,0.00042191,31]
[312397644,1705858305066,-500.0,0.00042191,31]
[312397645,1705858305078,-500.0,0.00042191,31]
[312397646,1705858305090,-500.0,0.00042191,31]
[312397647,1705858305099,-500.0,0.00042191,31]
[312397648,1705858305110,-500.0,0.00042191,31]
[312397649,1705858305121,-500.0,0.00042191,31]
[312397650,1705858305131,-500.0,0.00042191,31]
[312397651,1705858305141,-511.73103665,0.00042191,31]
[312397652,1705858305150,-518.38086668,0.00042191,31]
[312397653,1705858305160,-500.0,0.00042191,31]
[312397654,1705858305169,-500.0,0.00042191,31]
[312397655,1705858305178,-500.0,0.00042191,31]
[312397656,1705858305187,-500.0,0.00042191,31]
[312397657,1705858305197,-500.0,0.00042191,31]
[312397658,1705858305207,-500.0,0.00042191,31]
[312397659,1705858305216,-500.0,0.00042191,31]
[312397660,1705858305225,-500.0,0.00042191,31]
[312397661,1705858305235,-665.96,0.00042191,31]
[312397662,1705858305245,-479.93666053,0.00042191,31]
[312397663,1705858305254,-500.0,0.00042191,31]
[312397664,1705858305264,-500.0,0.00042191,31]
[312397665,1705858305273,-606.4,0.00042191,31]
[312397666,1705858305283,-500.0,0.00042191,31]
[312397667,1705858305293,-500.0,0.00042191,31]
[312397668,1705858305302,-362.41579885,0.00042191,31]
[312397669,1705858305311,-500.0,0.00042191,31]
[312397670,1705858305320,-500.0,0.00042191,31]
[312397671,1705858305329,-500.0,0.00042191,31]
[312397672,1705858305339,-500.0,0.00042191,31]
[312397673,1705858305348,-610.64,0.00042191,31]
[312397674,1705858305357,-500.0,0.00042191,31]
[312397675,1705858305367,-500.0,0.00042191,31]
[312397676,1705858305378,-500.0,0.00042191,31]
[312397677,1705858305388,-619.69,0.00042191,31]
[312397678,1705858305398,-556.51,0.00042191,31]
[312397679,1705858305408,-1402.46,0.00042191,31]
[312397680,1705858305417,-500.0,0.00042191,31]
[312397681,1705858305426,-500.0,0.00042191,31]
[312397682,1705858305435,-804.15,0.00042191,31]
[312397683,1705858305445,-500.0,0.00042191,31]
[312397684,1705858305455,-500.0,0.00042191,31]
[312397685,1705858305464,-500.0,0.00042191,31]
[312397686,1705858305473,-500.0,0.00042191,31]
[312397687,1705858305482,-505.09480528,0.00042191,31]
[312397688,1705858305492,-500.0,0.00042191,31]
[312397689,1705858305502,-500.0,0.00042191,31]
[312397690,1705858305512,-500.0,0.00042191,31]
[312397691,1705858305522,-468.60613286,0.00042191,31]
[312397692,1705858305531,-500.0,0.00042191,31]
[312397693,1705858305541,-500.0,0.00042191,31]
[312397694,1705858305550,-500.0,0.00042191,31]
[312397695,1705858305559,-500.0,0.00042191,31]
[312397696,1705858305569,-500.0,0.00042191,31]
[312397697,1705858305578,-500.0,0.00042191,31]
[312397698,1705858305587,-500.0,0.00042191,31]
[312397699,1705858305597,-500.0,0.00042191,31]
[312397700,1705858305606,-500.0,0.00042191,31]
[312397701,1705858305615,-500.0,0.00042191,31]
[312397702,1705858305625,-500.0,0.00042191,31]
[312397703,1705858305634,-500.0,0.00042191,31]
[312397704,1705858305643,-500.0,0.00042191,31]
[312397705,1705858305652,-500.0,0.00042191,31]
[312397706,1705858305661,-500.0,0.00042191,31]
[312397707,1705858305670,-509.73,0.00042191,31]
[312397708,1705858305679,-500.0,0.00042191,31]
[312397709,1705858305689,-637.31,0.00042191,31]
[312397710,1705858305698,-500.0,0.00042191,31]
[312397711,1705858305707,-819.1,0.00042191,31]
[312397712,1705858305716,-500.0,0.00042191,31]
[312397713,1705858305725,-430.44879956,0.00042191,31]
[312397714,1705858305734,-500.0,0.00042191,31]
[312397715,1705858305743,-854.66,0.00042191,31]
[312397716,1705858305752,-500.0,0.00042191,31]
[312397717,1705858305761,-500.0,0.00042191,31]
[312397718,1705858305770,-500.0,0.00042191,31]
[312397719,1705858305779,-668.54,0.00042191,31]
[312397720,1705858305788,-500.0,0.00042191,31]
[312397721,1705858305798,-500.0,0.00042191,31]
[312397722,1705858305807,-500.0,0.00042191,31]
[312397723,1705858305817,-500.0,0.00042191,31]
[312397724,1705858305826,-500.0,0.00042191,31]
[312397725,1705858305835,-500.0,0.00042191,31]
[312397726,1705858305843,-761.55,0.00042191,31]
[312397727,1705858305852,-524.62,0.00042191,31]
[312397728,1705858305861,-500.0,0.00042191,31]
[312397729,1705858305870,-667.4,0.00042191,31]
[312397730,1705858305879,-500.0,0.00042191,31]
[312397731,1705858305888,-500.0,0.00042191,31]
[312397732,1705858305899,-881.65,0.00042191,31]
[312397733,1705858305908,-519.32,0.00042191,31]
[312397734,1705858305918,-500.0,0.00042191,31]
[312397735,1705858305927,-514.45,0.00042191,31]
[312397736,1705858305936,-500.0,0.00042191,31]
[312397737,1705858305946,-500.0,0.00042191,31]
[312397738,1705858305954,-663.24,0.00042191,31]
[312397739,1705858305963,-500.0,0.00042191,31]
[312397740,1705858305972,-500.0,0.00042191,31]
[312397741,1705858305981,-500.0,0.00042191,31]
[312397742,1705858305991,-314.71160539,0.00042191,31]
[312397743,1705858306000,-500.0,0.00042191,31]
[312397744,1705858306009,-500.0,0.00042191,31]
[312397745,1705858306019,-500.0,0.00042191,31]
[312397746,1705858306028,-500.0,0.00042191,31]
[312397747,1705858306037,-667.18,0.00042191,31]
[312397748,1705858306046,-500.0,0.00042191,31]
[312397749,1705858306057,-500.0,0.00042191,31]
[312397750,1705858306066,-628.26,0.00042191,31]
[312397751,1705858306079,-585.56,0.00042191,31]
[312397752,1705858306088,-500.0,0.00042191,31]
[312397753,1705858306097,-500.0,0.00042191,31]
[312397754,1705858306107,-172.82776087,0.00042191,31]
[312397755,1705858306116,-500.0,0.00042191,31]
[312397756,1705858306125,-500.0,0.00042191,31]
[312397757,1705858306137,-500.0,0.00042191,31]
[312397758,1705858306147,-500.0,0.00042191,31]
[312397759,1705858306156,-500.0,0.00042191,31]
[312397760,1705858306165,-500.0,0.00042191,31]
[312397761,1705858306175,-500.0,0.00042191,31]
[312397762,1705858306184,-500.0,0.00042191,31]
[312397763,1705858306194,-500.0,0.00042191,31]
[312397764,1705858306204,-1000.0,0.00042191,7]
[312397765,1705858306213,-500.0,0.00042191,31]
[312397766,1705858306222,-771.66,0.00042191,31]
[312397767,1705858306231,-659.58,0.00042191,31]
[312397768,1705858306241,-338.60332326,0.00042191,31]
[312397769,1705858306250,-601.64,0.00042191,15]
[312397770,1705858306260,-927.1,0.00042191,31]
[312397771,1705858306269,-752.58,0.00042191,31]
[312397772,1705858306278,-500.0,0.00042191,31]
[312397773,1705858306287,-586.48,0.00042191,31]
[312397774,1705858306296,-204.09552939,0.00042191,31]
[312397775,1705858306305,-503.94185669,0.00042191,31]
[312397776,1705858306314,-500.0,0.00042191,31]
[312397777,1705858306323,-208.22878312,0.00042191,31]
[312397778,1705858306332,-500.0,0.00042191,31]
[312397779,1705858306341,-245.46043914,0.00042191,31]
[312397780,1705858306350,-500.0,0.00042191,31]
[312397781,1705858306359,-500.0,0.00042191,31]
[312397782,1705858306367,-571.83674449,0.00042191,31]
[312397783,1705858306376,-500.0,0.00042191,31]
[312397784,1705858306385,-500.0,0.00042191,31]
[312397785,1705858306394,-500.0,0.00042191,31]
[312397786,1705858306403,-500.0,0.00042191,31]
[312397787,1705858306412,-659.42,0.00042191,31]
[312397788,1705858306421,-500.0,0.00042191,31]
[312397789,1705858306430,-500.0,0.00042191,31]
[312397790,1705858306438,-500.0,0.00042191,31]
[312397791,1705858306448,-589.3,0.00042191,31]
[312397792,1705858306456,-500.0,0.00042191,31]
[312397793,1705858306465,-500.0,0.00042191,31]
[312397794,1705858306474,-500.0,0.00042191,31]
[312397795,1705858306483,-500.0,0.00042191,31]
[312397796,1705858306493,-500.0,0.00042191,31]
[312397797,1705858306502,-500.0,0.00042191,31]
[312397798,1705858306511,-500.0,0.00042191,31]
[312397799,1705858306521,-500.0,0.00042191,31]
[312397800,1705858306530,-500.0,0.00042191,31]
[312397801,1705858306539,-547.34,0.00042191,31]
[312397802,1705858306548,-500.0,0.00042191,31]
[312397803,1705858306557,-627.71,0.00042191,31]
[312397804,1705858306566,-500.0,0.00042191,31]
[312397805,1705858306576,-509.39623778,0.00042191,31]
[312397806,1705858306585,-500.0,0.00042191,31]
[312397807,1705858306595,-500.0,0.00042191,31]
[312397808,1705858306604,-500.0,0.00042191,31]
[312397809,1705858306615,-500.0,0.00042191,31]
[312397810,1705858306625,-500.0,0.00042191,31]
[312397811,1705858306634,-514.02053688,0.00042191,31]
[312397812,1705858306644,-904.01,0.00042191,31]
[312397813,1705858306653,-500.0,0.00042191,31]
[312397814,1705858306662,-500.0,0.00042191,31]
[312397815,1705858306671,-500.0,0.00042191,31]
[312397816,1705858306680,-500.0,0.00042191,31]
[312397817,1705858306689,-500.0,0.00042191,31]
[312397818,1705858306699,-744.5,0.00042191,31]
[312397819,1705858306709,-528.38,0.00042191,31]
[312397820,1705858306717,-226.14010867,0.00042191,31]
[312397821,1705858306726,-500.0,0.00042191,31]
[312397822,1705858306737,-500.0,0.00042191,31]
[312397823,1705858306747,-500.0,0.00042191,31]
[312397824,1705858306757,-541.26,0.00042191,31]
[312397825,1705858306766,-500.0,0.00042191,31]
[312397826,1705858306775,-500.0,0.00042191,31]
[312397827,1705858306784,-576.85475596,0.00042191,31]
[312397828,1705858306793,-616.68,0.00042191,31]
[312397829,1705858306802,-500.0,0.00042191,31]
[312397830,1705858306811,-589.25,0.00042191,31]
[312397831,1705858306820,-500.0,0.00042191,31]
[312397832,1705858306829,-681.77,0.00042191,31]
[312397833,1705858306839,-500.0,0.00042191,31]
[312397834,1705858306847,-500.0,0.00042191,31]
[312397835,1705858306856,-500.0,0.00042191,31]
[312397836,1705858306866,-500.0,0.00042191,31]
[312397837,1705858306875,-500.0,0.00042191,31]
[312397838,1705858306884,-500.0,0.00042191,31]
[312397839,1705858306893,-500.0,0.00042191,31]
[312397840,1705858306902,-689.41,0.00042191,31]
[312397841,1705858306911,-733.26,0.00042191,31]
[312397842,1705858306920,-516.09,0.00042191,31]
[312397843,1705858306929,-521.72,0.00042191,31]
[312397844,1705858306938,-648.59,0.00042191,31]
[312397845,1705858306949,-500.0,0.00042191,31]
[312397846,1705858306958,-500.0,0.00042191,31]
[312397847,1705858306967,-300.0,0.00042191,31]
[312397848,1705858306976,-1334.82,0.00042191,31]
[312397849,1705858306985,-500.0,0.00042191,31]
[312397850,1705858306994,-500.0,0.00042191,31]
[312397851,1705858307003,-500.0,0.00042191,31]
[312397852,1705858307012,-500.0,0.00042191,2]
[312397853,1705858307022,-500.0,0.00042191,31]
[312397854,1705858307031,-543.26,0.00042191,31]
[312397855,1705858307041,-558.46,0.00042191,31]
[312397856,1705858307050,-500.0,0.00042191,31]
[312397857,1705858307061,-500.0,0.00042191,31]
[312397858,1705858307070,-1416.38,0.00042191,2]
[312397859,1705858307082,-772.93,0.00042191,31]
[312397860,1705858307091,-500.0,0.00042191,31]
[312397861,1705858307100,-537.8,0.00042191,31]
[312397862,1705858307110,-646.27,0.00042191,31]
[312397863,1705858307121,-500.0,0.00042191,31]
[312397864,1705858307130,-1451.51,0.00042191,31]
[312397865,1705858307140,-500.0,0.00042191,31]
[312397866,1705858307149,-574.81964288,0.00042191,31]
[312397867,1705858307159,-500.0,0.00042191,31]
[312397868,1705858307168,-500.0,0.00042191,31]
[312397869,1705858307177,-1000.0,0.00042191,50]
[312397870,1705858307186,-618.07,0.00042191,31]
[312397871,1705858307195,-500.0,0.00042191,31]
[312397872,1705858307204,-500.0,0.00042191,31]
[312397873,1705858307213,-684.61,0.00042191,31]
[312397874,1705858307222,-692.68,0.00042191,31]
[312397875,1705858307231,-500.0,0.00042191,31]
[312397876,1705858307240,-500.0,0.00042191,31]
[312397877,1705858307250,-833.11,0.00042191,31]
[312397878,1705858307260,-500.0,0.00042191,31]
[312397879,1705858307274,-505.47642703,0.00042191,31]
[312397880,1705858307283,-500.0,0.00042191,31]
[312397881,1705858307295,-765.98,0.00042191,31]
[312397882,1705858307311,-635.0,0.00042191,31]
[312397883,1705858307320,-500.0,0.00042191,31]
[312397884,1705858307329,-569.6,0.00042191,31]
[312397885,1705858307338,-533.8807989,0.00042191,31]
[312397886,1705858307347,-500.0,0.00042191,31]
[312397887,1705858307356,-500.0,0.00042191,31]
[312397888,1705858307365,-997.4,0.00042191,31]
[312397889,1705858307374,-500.0,0.00042191,31]
[312397890,1705858307384,-500.0,0.00042191,31]
[312397891,1705858307393,-1066.33360145,0.00042191,7]
[312397892,1705858307402,-500.0,0.00042191,31]
[312397893,1705858307411,-500.0,0.00042191,31]
[312397894,1705858307421,-796.16,0.00042191,31]
[312397895,1705858307430,-500.0,0.00042191,31]
[312397896,1705858307439,-500.0,0.00042191,31]
[312397897,1705858307450,-562.29,0.00042191,31]
[312397898,1705858307459,-530.76,0.00042191,31]
[312397899,1705858307469,-500.0,0.00042191,31]
[312397900,1705858307478,-500.0,0.00042191,31]
[312397901,1705858307487,-869.35,0.00042191,31]
[312397902,1705858307496,-517.7656843,0.00042191,31]
[312397903,1705858307506,-559.68,0.00042191,31]
[312397904,1705858307515,-500.0,0.00042191,31]
[312397905,1705858307525,-500.0,0.00042191,31]
[312397906,1705858307535,-500.0,0.00042191,31]
[312397907,1705858307544,-500.0,0.00042191,31]
[312397908,1705858307553,-532.62,0.00042191,31]
[312397909,1705858307562,-500.0,0.00042191,31]
[312397910,1705858307571,-796.99,0.00042191,31]
[312397911,1705858307580,-1317.0,0.00042191,31]
[312397912,1705858307590,-500.0,0.00042191,31]
[312397913,1705858307599,-500.0,0.00042191,31]
[312397914,1705858307607,-500.0,0.00042191,31]
[312397915,1705858307616,-662.26,0.00042191,31]
[312397916,1705858307625,-535.97544872,0.00042191,31]
[312397917,1705858307634,-215.35893797,0.00042191,31]
[312397918,1705858307643,-737.04,0.00042191,31]
[312397919,1705858307653,-500.0,0.00042191,31]
[312397920,1705858307662,-500.0,0.00042191,31]
[312397921,1705858307671,-404.71701278,0.00042191,31]
[312397922,1705858307681,-500.0,0.00042191,31]
[312397923,1705858307693,-500.0,0.00042191,31]
[312397924,1705858307702,-500.0,0.00042191,31]
[312397925,1705858307711,-500.0,0.00042191,31]
[312397926,1705858307720,-670.12,0.00042191,31]
[312397927,1705858307730,-843.71,0.00042191,31]
[312397928,1705858307738,-277.25045077,0.00042191,31]
[312397929,1705858307747,-500.0,0.00042191,31]
[312397930,1705858307756,-500.0,0.00042191,31]
[312397931,1705858307765,-500.0,0.00042191,31]
[312397932,1705858307774,-897.27,0.00042191,31]
[312397933,1705858307783,-500.0,0.00042191,31]
[312397934,1705858307792,-511.71212577,0.00042191,31]
[312397935,1705858307801,-500.0,0.00042191,31]
[312397936,1705858307811,-500.0,0.00042191,31]
[312397937,1705858307819,-1007.44,0.00042191,31]
[312397938,1705858307828,-500.0,0.00042191,31]
[312397939,1705858307837,-500.0,0.00042191,31]
[312397940,1705858307847,-500.0,0.00042191,31]
[312397941,1705858307856,-500.0,0.00042191,31]
[312397942,1705858308074,-500.0,0.00042191,31]
[312397943,1705858308088,-500.0,0.00042191,31]
[312397944,1705858308097,-456.45701792,0.00042191,31]
[312397945,1705858308107,-748.65,0.00042191,31]
[312397946,1705858308116,-500.0,0.00042191,31]
[312397947,1705858308126,-500.0,0.00042191,31]
[312397948,1705858308135,-500.0,0.00042191,31]
[312397949,1705858308143,-500.0,0.00042191,60]
[312397950,1705858308153,-500.0,0.00042191,31]
[312397951,1705858308163,-500.0,0.00042191,31]
[312397952,1705858308172,-1126.77,0.00042191,31]
[312397953,1705858308181,-796.98,0.00042191,31]
[312397954,1705858308191,-500.0,0.00042191,31]
[312397955,1705858308200,-500.0,0.00042191,31]
[312397956,1705858308209,-500.0,0.00042191,31]
[312397957,1705858308220,-788.72,0.00042191,31]
[312397958,1705858308229,-500.0,0.00042191,31]
[312397959,1705858308238,-530.34,0.00042191,31]
[312397960,1705858308247,-500.0,0.00042191,31]
[312397961,1705858308256,-500.0,0.00042191,31]
[312397962,1705858308265,-500.0,0.00042191,31]
[312397963,1705858308274,-500.0,0.00042191,5]
[312397964,1705858308284,-600.0,0.00042191,7]
[312397965,1705858308293,-550.93127391,0.00042191,31]
[312397966,1705858308302,-1147.47,0.00042191,31]
[312397967,1705858308311,-500.0,0.00042191,31]
[312397968,1705858308320,-500.0,0.00042191,31]
[312397969,1705858308330,-500.0,0.00042191,31]
[312397970,1705858308339,-883.78,0.00042191,31]
[312397971,1705858308348,-500.0,0.00042191,31]
[312397972,1705858308357,-590.82,0.00042191,31]
[312397973,1705858308366,-500.0,0.00042191,31]
[312397974,1705858308376,-508.88044671,0.00042191,31]
[312397975,1705858308385,-715.34,0.00042191,31]
[312397976,1705858308395,-1084.43,0.00042191,31]
[312397977,1705858308404,-500.0,0.00042191,31]
[312397978,1705858308413,-500.0,0.00042191,31]
[312397979,1705858308423,-500.0,0.00042191,31]
[312397980,1705858308432,-500.0,0.00042191,31]
[312397981,1705858308440,-500.0,0.00042191,31]
[312397982,1705858308450,-504.9,0.00042191,31]
[312397983,1705858308460,-500.0,0.00042191,31]
[312397984,1705858308469,-784.14,0.00042191,2]
[312397985,1705858308478,-720.62,0.00042191,31]
[312397986,1705858308488,-735.28,0.00042191,31]
[312397987,1705858308498,-500.0,0.00042191,31]
[312397988,1705858308507,-500.0,0.00042191,31]
[312397989,1705858308516,-500.0,0.00042191,31]
[312397990,1705858308525,-500.0,0.00042191,31]
[312397991,1705858308534,-588.81,0.00042191,31]
[312397992,1705858308543,-857.01,0.00042191,31]
[312397993,1705858308552,-609.36,0.00042191,31]
[312397994,1705858308561,-500.0,0.00042191,31]
[312397995,1705858308570,-500.0,0.00042191,31]
[312397996,1705858308580,-500.0,0.00042191,31]
[312397997,1705858308589,-539.1085005,0.00042191,31]
[312397998,1705858308598,-500.0,0.00042191,31]
[312397999,1705858308607,-500.0,0.00042191,31]
[312398000,1705858308616,-698.28,0.00042191,20]
[312398001,1705858308625,-640.31,0.00042191,31]
[312398002,1705858308635,-500.0,0.00042191,31]
[312398003,1705858308643,-589.47,0.00042191,31]
[312398004,1705858308652,-892.27,0.00042191,31]
[312398005,1705858308661,-689.61,0.00042191,31]